bitfinex/quotes_BTCUSD_20220111
["timestamp","ask_amount","ask_price","bid_price","bid_amount"]
[1641932981811,0.05835548,42844.0,42842.0,0.00084095]
[1641932982012,0.10835548,42844.0,42842.0,0.00084095]
[1641932982914,0.10835548,42844.0,42841.0,0.00084096]
[1641932983170,0.52695375,42844.0,42841.0,0.00084096]
[1641932983366,0.04488636,42842.0,42841.0,0.00084096]
[1641932983564,1.89907352,42842.0,42841.0,0.00084096]
[1641932983763,1.92383352,42842.0,42841.0,0.00084096]
[1641932983963,1.92506714,42842.0,42841.0,0.00084096]
[1641932984162,1.92506714,42842.0,42839.0,0.00063076]
[1641932984363,1.524651,42840.0,42839.0,0.00063076]
[1641932984563,1.67968423,42840.0,42839.0,0.00063076]
[1641932984766,1.67968423,42840.0,42839.0,0.00078076]
[1641932985162,1.67968423,42840.0,42839.0,0.00015]
[1641932985365,1.70468423,42840.0,42839.0,0.00015]
[1641932985564,0.49792791,42839.0,42837.0,0.00066129]
[1641932985767,1.321251,42838.0,42837.0,0.00066129]
[1641932986063,0.57962816,42838.0,42837.0,0.00066129]
[1641932986263,0.94685635,42838.0,42837.0,0.00015]
[1641932986464,0.76983409,42838.0,42837.0,0.00015]
[1641932986666,1.15651737,42838.0,42835.0,0.00066131]
[1641932986909,1.266758,42837.0,42836.0,0.00015]
[1641932987108,1.93046892,42837.0,42836.0,0.00015]
[1641932987309,1.524651,42836.0,42833.0,0.0011]
[1641932987510,0.374651,42834.0,42831.0,0.0011]
[1641932987709,0.0966,42833.0,42831.0,0.0011]
[1641932987909,0.57280575,42832.0,42831.0,0.0011]
[1641932988108,0.66940575,42832.0,42831.0,0.0011]
[1641932988511,0.85633527,42832.0,42831.0,0.0011]
[1641932989513,0.88233527,42832.0,42831.0,0.0011]
[1641932989908,0.50768427,42832.0,42831.0,0.0011]
[1641932990761,0.48168427,42832.0,42831.0,0.0011]
[1641932991362,0.52368427,42832.0,42831.0,0.0011]
[1641932992766,0.48168427,42832.0,42831.0,0.0011]
[1641932993365,0.51568427,42832.0,42831.0,0.0011]
[1641932994622,0.48168427,42832.0,42831.0,0.0011]
[1641932995424,0.51168427,42832.0,42831.0,0.0011]
[1641932995822,0.46168427,42832.0,42831.0,0.0011]
[1641932996428,0.41508427,42832.0,42831.0,0.0011]
[1641932996625,0.38508427,42832.0,42831.0,0.0011]
[1641932997426,0.61150416,42832.0,42831.0,0.0011]
[1641932997628,0.61150416,42832.0,42831.0,0.2311]
[1641932997827,0.77773527,42832.0,42831.0,0.2311]
[1641932998027,0.98412468,42832.0,42831.0,0.2311]
[1641932998269,0.77773527,42832.0,42831.0,0.2311]
[1641932998469,0.77773527,42832.0,42831.0,0.0011]
[1641932998669,0.75973527,42832.0,42831.0,0.0011]
[1641932998874,0.95774265,42832.0,42831.0,0.0011]
[1641932999071,1.00774265,42832.0,42831.0,0.0011]
[1641932999570,1.03074265,42832.0,42831.0,0.0011]
[1641933000272,1.03912665,42832.0,42831.0,0.0011]
[1641933000473,0.78273527,42832.0,42831.0,0.0011]
[1641933001172,0.83273527,42832.0,42831.0,0.0011]
[1641933001377,0.80973527,42832.0,42831.0,0.0011]
[1641933001573,0.84273527,42832.0,42831.0,0.0011]
[1641933002716,0.80973527,42832.0,42831.0,0.0011]
[1641933003519,0.82373527,42832.0,42831.0,0.0011]
[1641933003924,0.064,42832.0,42831.0,0.0011]
[1641933004117,0.014,42832.0,42831.0,0.46999086]
[1641933004518,0.014,42832.0,42831.0,0.0011]
[1641933004718,0.38668328,42838.0,42831.0,0.0011]
[1641933004920,0.46392068,42836.0,42831.0,0.0011]
[1641933005220,0.05836576,42835.0,42831.0,0.0011]
[1641933005667,0.46792068,42836.0,42831.0,0.0011]
[1641933005864,0.1,42832.0,42831.0,0.00179981]
[1641933007066,0.1,42832.0,42831.0,0.0011]
[1641933007967,0.1,42832.0,42831.0,0.2011]
[1641933008167,0.1,42832.0,42831.0,0.50994768]
[1641933009419,0.24086122,42832.0,42831.0,0.50994768]
[1641933009619,0.24086122,42832.0,42831.0,0.2011]
[1641933010322,0.29086122,42832.0,42831.0,0.2011]
[1641933010519,0.34086122,42832.0,42831.0,0.2011]
[1641933010921,0.29086122,42832.0,42831.0,0.2011]
[1641933011522,0.29586122,42832.0,42831.0,0.2011]
[1641933011720,0.34586122,42832.0,42831.0,0.2011]
[1641933012822,0.34086122,42832.0,42831.0,0.2011]
[1641933013471,0.24086122,42832.0,42831.0,0.2011]
[1641933014773,0.07043061,42832.0,42831.0,0.7584634]
[1641933014971,0.11670315,42848.0,42832.0,0.7]
[1641933015170,0.11670315,42848.0,42837.0,0.15]
[1641933015372,0.11670315,42848.0,42844.0,0.34115765]
[1641933015572,0.41830856,42845.0,42844.0,0.34115765]
[1641933015773,0.001,42848.0,42844.0,1.085556]
[1641933015970,0.001,42848.0,42845.0,0.00127209]
[1641933016370,3.302e-05,42850.0,42848.0,0.45]
[1641933016569,3.302e-05,42850.0,42849.0,0.32727753]
[1641933016570,0.00078343,42850.0,42849.0,0.32727753]
[1641933016772,0.00078343,42850.0,42849.0,1.28147951]
[1641933017016,0.00078343,42850.0,42849.0,1.38147951]
[1641933017517,0.00078343,42850.0,42849.0,1.44407951]
[1641933017717,0.00032081,42852.0,42849.0,2.67507951]
[1641933017915,0.00032081,42852.0,42851.0,1.681]
[1641933018115,0.00032081,42852.0,42851.0,0.50503281]
[1641933018515,0.00032081,42852.0,42851.0,0.86556875]
[1641933018916,0.00032081,42854.0,42851.0,1.21556875]
[1641933019117,0.00032081,42854.0,42853.0,0.00120234]
[1641933019321,0.00032081,42854.0,42853.0,1.63263831]
[1641933019519,0.00032081,42854.0,42853.0,1.73263831]
[1641933020116,0.00032081,42856.0,42853.0,1.73263831]
[1641933020318,0.00032081,42856.0,42854.0,0.058322]
[1641933020517,0.00032081,42856.0,42855.0,1.7894144]
[1641933020769,0.00032081,42856.0,42855.0,1.8894144]
[1641933021468,0.00067365,42858.0,42856.0,0.116635]
[1641933021768,0.00067365,42858.0,42857.0,2.14536395]
[1641933021970,0.00067365,42858.0,42857.0,1.14536395]
[1641933022167,0.00067365,42858.0,42857.0,1.24536395]
[1641933022368,0.00015,42870.0,42857.0,0.86907435]
[1641933022568,0.00015,42870.0,42859.0,0.15]
[1641933022569,0.00067367,42860.0,42859.0,0.15]
[1641933022769,0.00067367,42860.0,42859.0,0.59080362]
[1641933023170,0.00067367,42860.0,42859.0,0.69080362]
[1641933023371,0.00067367,42860.0,42859.0,1.08680558]
[1641933023571,0.00067367,42860.0,42859.0,1.55418519]
[1641933023770,0.00067369,42862.0,42859.0,1.55418519]
[1641933024273,0.00067369,42862.0,42861.0,0.15]
[1641933024719,0.05831993,42867.0,42861.0,0.15]
[1641933024921,0.0005651,42864.0,42862.0,0.058322]
[1641933025220,0.0005651,42864.0,42861.0,0.15]
[1641933025620,0.0005651,42864.0,42862.0,0.013]
[1641933025819,0.0005651,42864.0,42862.0,0.31670372]
[1641933026121,0.00063149,42865.0,42862.0,0.41670372]
[1641933026520,0.00063149,42865.0,42862.0,0.56670372]
[1641933026819,0.00063149,42865.0,42862.0,0.40370372]
[1641933027023,0.00063149,42865.0,42863.0,0.15]
[1641933027320,0.0006315,42866.0,42863.0,0.15]
[1641933027520,0.0006315,42866.0,42863.0,0.163]
[1641933027722,0.38265105,42866.0,42863.0,0.163]
[1641933028565,0.38265105,42866.0,42863.0,0.363]
[1641933028765,0.38201955,42866.0,42863.0,0.363]
[1641933028964,0.38201955,42866.0,42864.0,0.30744837]
[1641933029366,0.38201955,42866.0,42863.0,0.40832]
[1641933029568,0.38201955,42866.0,42864.0,0.01]
[1641933030768,0.38201955,42866.0,42863.0,0.40832]
[1641933031567,0.38201955,42866.0,42863.0,0.41832]
[1641933032515,0.00063005,42867.0,42863.0,0.51832]
[1641933032714,0.00063005,42867.0,42863.0,0.35832]
[1641933032915,0.00063005,42867.0,42865.0,0.058316]
[1641933033317,0.00063005,42867.0,42864.0,0.15]
[1641933033517,0.00063226,42867.0,42865.0,0.01]
[1641933033716,0.34020887,42866.0,42865.0,0.01]
[1641933034717,0.34020887,42866.0,42864.0,0.15]
[1641933035671,0.34020887,42866.0,42864.0,0.158]
[1641933036867,0.34020887,42866.0,42864.0,0.15]
[1641933037268,0.00064245,42867.0,42864.0,0.15]
[1641933037473,0.05064245,42867.0,42864.0,0.15]
[1641933037668,0.05064245,42867.0,42864.0,0.159]
[1641933038068,0.05,42867.0,42864.0,0.159]
[1641933038670,0.05,42867.0,42864.0,0.217318]
[1641933038870,0.05,42867.0,42864.0,0.208318]
[1641933039072,0.05,42867.0,42865.0,0.30263933]
[1641933039515,0.05,42867.0,42865.0,0.008]
[1641933040122,0.00060623,42866.0,42865.0,0.008]
[1641933040718,0.00060623,42866.0,42864.0,0.308318]
[1641933041517,0.00060623,42866.0,42864.0,0.317318]
[1641933041716,0.00060623,42866.0,42864.0,0.312318]
[1641933042118,0.00060623,42866.0,42864.0,0.412318]
[1641933042318,0.00060623,42866.0,42864.0,0.26858869]
[1641933042520,0.00060623,42866.0,42865.0,1.33332804]
[1641933042722,0.00060623,42866.0,42865.0,1.45998411]
[1641933042918,0.00060623,42866.0,42865.0,1.55998411]
[1641933043173,0.00060623,42866.0,42865.0,3.22012183]
[1641933043663,0.00060623,42866.0,42865.0,3.23812183]
[1641933044162,0.00015,42870.0,42868.0,0.058298]
[1641933044163,8.711e-05,42870.0,42868.0,0.058298]
[1641933044363,8.711e-05,42870.0,42869.0,0.3179651]
[1641933044566,8.711e-05,42870.0,42869.0,0.8628651]
[1641933044765,8.711e-05,42870.0,42869.0,2.0938651]
[1641933045167,8.711e-05,42870.0,42869.0,1.52370393]
[1641933045370,8.711e-05,42870.0,42869.0,1.62370393]
[1641933045567,8.711e-05,42870.0,42869.0,1.64070393]
[1641933045768,0.00015,42880.0,42871.0,1.231]
[1641933046068,0.00015,42880.0,42877.0,0.00129725]
[1641933046268,0.00015,42880.0,42879.0,0.1449]
[1641933046667,0.00015,42880.0,42879.0,0.38736995]
[1641933046919,0.00015,42880.0,42879.0,0.75593695]
[1641933047119,0.00015,42880.0,42879.0,0.93879886]
[1641933047318,0.00040436,42881.0,42880.0,1.15]
[1641933047519,0.00040436,42881.0,42880.0,3.43794937]
[1641933047718,0.58057838,42898.0,42881.0,1.05]
[1641933047921,0.58057838,42898.0,42887.0,0.35440348]
[1641933047922,0.0016172,42888.0,42887.0,0.35440348]
[1641933048119,0.57734558,42899.0,42895.0,0.05827]
[1641933048318,0.57734558,42899.0,42897.0,0.00129168]
[1641933048517,0.57734558,42899.0,42895.0,0.1449]
[1641933048918,0.57734558,42899.0,42896.0,0.26619298]
[1641933049117,0.57734558,42899.0,42896.0,0.41109298]
[1641933049318,0.57734558,42899.0,42898.0,0.053269]
[1641933049518,0.38054564,42900.0,42899.0,1.12734]
[1641933049719,0.77056048,42907.0,42900.0,1.231]
[1641933049921,0.77056048,42907.0,42906.0,0.02551643]
[1641933050119,0.77056048,42907.0,42906.0,0.31311643]
[1641933050524,0.77056048,42907.0,42906.0,1.63373266]
[1641933050964,0.00015,42910.0,42906.0,1.57548266]
[1641933051166,0.00015,42910.0,42907.0,0.058248]
[1641933051366,0.00015,42910.0,42909.0,0.00125936]
[1641933051567,0.00015,42910.0,42909.0,0.04785936]
[1641933052871,0.34941427,42910.0,42909.0,0.0466]
[1641933053173,0.35658377,42910.0,42909.0,0.0466]
[1641933053568,0.35658377,42910.0,42909.0,0.0566]
[1641933053969,0.40658377,42910.0,42909.0,0.0566]
[1641933054414,0.35658377,42910.0,42909.0,0.0566]
[1641933054615,0.40658377,42910.0,42909.0,0.0566]
[1641933054815,0.40658377,42910.0,42909.0,0.0466]
[1641933055619,0.0573195,42910.0,42909.0,0.0606]
[1641933056117,0.0073195,42910.0,42909.0,0.0606]
[1641933056918,0.0073195,42910.0,42903.0,0.36780448]
[1641933056919,0.05826356,42908.0,42903.0,0.36780448]
[1641933057320,0.0073195,42910.0,42905.0,0.05826]
[1641933057521,0.00015,42910.0,42908.0,0.43748018]
[1641933057920,0.00015,42910.0,42905.0,0.00124238]
[1641933058172,0.05825988,42909.0,42905.0,0.14614238]
[1641933058368,0.05825988,42909.0,42905.0,0.00124238]
[1641933058565,0.05825988,42909.0,42907.0,0.1449]
[1641933058766,0.05825988,42909.0,42908.0,0.1449]
[1641933058967,0.00071043,42910.0,42908.0,0.1449]
[1641933059367,0.00071043,42910.0,42908.0,0.203155]
[1641933059667,0.00071043,42910.0,42909.0,0.1449]
[1641933059867,0.00015,42910.0,42908.0,0.017]
[1641933060266,0.00015,42910.0,42909.0,0.0999]
[1641933060467,0.05840972,42910.0,42909.0,0.0999]
[1641933060667,0.05840972,42910.0,42908.0,0.017]
[1641933060870,0.05840972,42910.0,42907.0,0.67133461]
[1641933061067,0.05840972,42910.0,42907.0,0.2449]
[1641933061371,0.05840972,42910.0,42907.0,0.1449]
[1641933061566,0.05826333,42909.0,42907.0,0.1599]
[1641933062019,0.42756574,42909.0,42907.0,0.1599]
[1641933062221,0.42756574,42909.0,42907.0,0.015]
[1641933062222,1.524651,42908.0,42907.0,0.015]
[1641933062421,1.574651,42908.0,42907.0,0.015]
[1641933062621,1.671251,42908.0,42907.0,0.015]
[1641933063123,0.33428713,42894.0,42892.0,0.32384918]
[1641933063324,0.38428713,42894.0,42888.0,0.27855534]
[1641933063523,0.38428713,42894.0,42887.0,0.77918666]
[1641933063723,0.43428713,42894.0,42892.0,0.035]
[1641933064823,0.43428713,42894.0,42887.0,0.45533748]
[1641933065022,0.49257737,42894.0,42887.0,0.45533748]
[1641933065677,0.49857737,42894.0,42886.0,0.00069351]
[1641933065866,0.49918223,42894.0,42886.0,0.0006935]
[1641933066070,0.11658553,42892.0,42886.0,0.0006935]
[1641933066268,0.374651,42891.0,42886.0,0.0006935]
[1641933066468,0.424651,42891.0,42886.0,0.0006935]
[1641933066668,0.86022244,42891.0,42886.0,0.0006935]
[1641933066870,0.90682244,42891.0,42886.0,0.0006935]
[1641933067268,0.90682244,42891.0,42886.0,0.00069671]
[1641933067471,0.90682244,42891.0,42890.0,0.00015]
[1641933067669,0.92682244,42891.0,42890.0,0.00015]
[1641933067868,0.058302,42890.0,42887.0,0.00015]
[1641933068070,0.52955144,42889.0,42887.0,0.00015]
[1641933068271,0.20490044,42889.0,42887.0,0.00015]
[1641933068871,0.0466,42889.0,42888.0,0.35276138]
[1641933069171,0.0466,42889.0,42888.0,0.35291138]
[1641933069416,0.0466,42889.0,42888.0,0.45281138]
[1641933069618,0.0466,42889.0,42888.0,0.47281138]
[1641933069817,0.0466,42889.0,42888.0,0.02015]
[1641933071019,0.0466,42889.0,42888.0,0.00015]
[1641933071421,0.0466,42889.0,42886.0,0.00069566]
[1641933071422,0.0466,42889.0,42887.0,0.00015]
[1641933071620,0.0466,42889.0,42888.0,0.022]
[1641933071920,0.05828818,42890.0,42888.0,0.02215]
[1641933072120,0.05889749,42890.0,42888.0,0.02215]
[1641933072321,0.00060931,42890.0,42889.0,0.4369088]
[1641933073173,0.05060933,42892.0,42889.0,0.5369088]
[1641933073468,0.00060933,42892.0,42890.0,0.00015]
[1641933074267,0.39145895,42894.0,42890.0,0.00015]
[1641933074568,0.00060977,42893.0,42890.0,0.00015]
[1641933075170,0.374651,42892.0,42890.0,0.00015]
[1641933075370,0.31774395,42891.0,42890.0,0.00015]
[1641933075571,0.79239495,42891.0,42890.0,0.017]
[1641933075969,1.18246162,42891.0,42890.0,0.01715]
[1641933077019,0.80781062,42891.0,42890.0,0.00015]
[1641933077419,0.80781062,42891.0,42887.0,0.00015]
[1641933077619,0.81581062,42891.0,42890.0,0.012]
[1641933078020,0.81642025,42891.0,42890.0,0.01215]
[1641933078922,0.80842025,42891.0,42890.0,0.00015]
[1641933079321,0.80781062,42891.0,42887.0,0.00015]
[1641933079722,0.81681062,42891.0,42890.0,0.009]
[1641933080122,0.81681062,42891.0,42890.0,0.00915]
[1641933080971,0.80781062,42891.0,42890.0,0.00015]
[1641933081371,0.80781062,42891.0,42887.0,0.00015]
[1641933081575,0.85651865,42891.0,42887.0,0.00015]
[1641933081775,0.86551865,42891.0,42890.0,0.009]
[1641933081973,0.81181062,42891.0,42890.0,0.009]
[1641933082272,0.81181062,42891.0,42890.0,0.00915]
[1641933082472,0.49406667,42891.0,42890.0,0.00915]
[1641933082873,0.48506667,42891.0,42890.0,0.00015]
[1641933083072,0.09474851,42891.0,42890.0,0.00015]
[1641933083272,0.09474851,42891.0,42887.0,0.10015]
[1641933083471,0.05,42892.0,42888.0,0.00015]
[1641933083672,0.007,42891.0,42890.0,0.015]
[1641933083972,0.00760966,42891.0,42890.0,0.015]
[1641933084175,0.47072384,42891.0,42890.0,0.01515]
[1641933085022,0.00760966,42891.0,42890.0,0.01515]
[1641933085223,0.007,42891.0,42890.0,0.01515]
[1641933085625,0.007,42891.0,42890.0,0.01415]
[1641933086429,0.49576798,42891.0,42890.0,0.01415]
[1641933086627,0.54576798,42891.0,42890.0,0.01415]
[1641933087028,0.05,42891.0,42890.0,0.00015]
[1641933087429,0.05,42891.0,42888.0,0.00015]
[1641933087631,0.006,42891.0,42890.0,0.015]
[1641933088031,0.006,42891.0,42890.0,0.01515]
[1641933088879,0.00060967,42893.0,42890.0,0.00015]
[1641933089277,0.00060967,42893.0,42889.0,0.00015]
[1641933089677,0.30540939,42893.0,42890.0,0.013]
[1641933090077,0.30540939,42893.0,42890.0,0.01315]
[1641933090479,0.00760967,42893.0,42890.0,0.01315]
[1641933090878,0.29740907,42893.0,42890.0,0.00015]
[1641933091278,0.94260649,42894.0,42888.0,0.00015]
[1641933091279,0.94321617,42894.0,42888.0,0.00015]
[1641933091779,0.008,42893.0,42890.0,0.011]
[1641933092221,0.008,42893.0,42890.0,0.01115]
[1641933093022,0.94321616,42894.0,42890.0,0.00015]
[1641933093424,0.94321616,42894.0,42888.0,0.00015]
[1641933093623,0.94321617,42894.0,42888.0,0.00015]
[1641933093823,0.95121617,42894.0,42890.0,0.011]
[1641933094225,0.95121617,42894.0,42890.0,0.01115]
[1641933095024,0.94321617,42894.0,42890.0,0.00015]
[1641933095426,0.94321617,42894.0,42888.0,0.00015]
[1641933095681,0.95121617,42894.0,42890.0,0.011]
[1641933096073,0.00060966,42893.0,42890.0,0.01115]
[1641933097074,0.00060966,42893.0,42890.0,0.00015]
[1641933097377,0.41699115,42893.0,42888.0,0.00015]
[1641933097773,0.42599115,42893.0,42890.0,0.012]
[1641933097973,0.41455036,42893.0,42890.0,0.012]
[1641933098174,0.41455036,42893.0,42890.0,0.01215]
[1641933098775,0.41455036,42893.0,42887.0,0.08215]
[1641933098976,0.40555036,42893.0,42887.0,0.08215]
[1641933099421,0.40555036,42893.0,42888.0,0.05]
[1641933099624,0.00060966,42892.0,42887.0,0.08215]
[1641933100424,0.00060966,42892.0,42880.0,0.00015]
[1641933100425,1.15,42890.0,42880.0,0.00015]
[1641933100626,0.40633229,42889.0,42880.0,0.00015]
[1641933100825,0.40633229,42889.0,42876.0,0.00015]
[1641933100826,0.00129298,42886.0,42876.0,0.00015]
[1641933101225,0.8079515,42877.0,42874.0,0.00015]
[1641933101425,0.8579515,42877.0,42874.0,0.00015]
[1641933101825,0.8079515,42877.0,42874.0,0.00015]
[1641933102226,0.8579515,42877.0,42871.0,0.116606]
[1641933102629,0.41635195,42877.0,42872.0,0.00015]
[1641933102828,0.41635195,42877.0,42873.0,0.058306]
[1641933103027,0.05,42877.0,42873.0,0.058306]
[1641933103277,0.05,42877.0,42874.0,0.00015]
[1641933103477,0.37084828,42881.0,42876.0,0.26266365]
[1641933103778,0.37084828,42881.0,42877.0,0.00015]
[1641933103975,0.42084828,42881.0,42877.0,0.00015]
[1641933104177,0.40430424,42880.0,42877.0,0.00015]
[1641933104376,0.40430424,42880.0,42877.0,0.00092428]
[1641933104775,0.40430424,42880.0,42878.0,0.00015]
[1641933105777,0.40530424,42880.0,42878.0,0.00015]
[1641933105979,0.39763477,42880.0,42878.0,0.00015]
[1641933106778,0.39885322,42880.0,42878.0,0.00015]
[1641933107429,0.00221845,42880.0,42878.0,0.00015]
[1641933107830,0.00721845,42880.0,42878.0,0.00015]
[1641933109025,0.00121845,42880.0,42878.0,0.00015]
[1641933109829,0.00721845,42880.0,42878.0,0.00015]
[1641933110971,0.00121845,42880.0,42878.0,0.00015]
[1641933111670,0.38033749,42881.0,42878.0,0.00015]
[1641933111870,0.005,42880.0,42878.0,0.00015]
[1641933112974,0.38033749,42881.0,42878.0,0.00015]
[1641933113770,0.38533749,42881.0,42878.0,0.00015]
[1641933113972,0.005,42881.0,42878.0,0.00015]
[1641933115022,0.00121686,42882.0,42878.0,0.00015]
[1641933115421,0.00121686,42882.0,42879.0,0.31378282]
[1641933115624,0.00121686,42882.0,42879.0,0.1]
[1641933115823,0.00121686,42882.0,42880.0,0.00015]
[1641933117827,0.00821686,42882.0,42880.0,0.36611282]
[1641933118026,0.00821686,42882.0,42880.0,0.10015]
[1641933118275,0.00821686,42882.0,42881.0,0.32728005]
[1641933118473,0.00821686,42882.0,42881.0,2.54013845]
[1641933118675,0.00821686,42882.0,42881.0,2.71550845]
[1641933119073,0.00121686,42882.0,42881.0,2.71550845]
[1641933119273,0.00121686,42882.0,42881.0,3.08338438]
[1641933119672,0.00121686,42882.0,42881.0,0.07537]
[1641933119872,0.00121686,42882.0,42880.0,0.04675]
[1641933120073,0.33944499,42881.0,42880.0,0.00015]
[1641933120275,0.38944499,42881.0,42880.0,0.00015]
[1641933120472,0.78977782,42881.0,42880.0,0.00015]
[1641933121772,0.85707119,42881.0,42879.0,0.00015]
[1641933122220,0.39842536,42881.0,42879.0,0.00015]
[1641933123118,0.39042536,42881.0,42879.0,0.00015]
[1641933123922,0.39842536,42881.0,42879.0,0.01015]
[1641933124123,0.05898037,42881.0,42879.0,0.01015]
[1641933124325,0.00898037,42881.0,42880.0,0.40015]
[1641933124526,0.00898037,42881.0,42880.0,0.50015]
[1641933125024,0.00098037,42881.0,42880.0,0.50015]
[1641933125426,0.00098037,42881.0,42880.0,0.74673445]
[1641933125873,0.00098037,42881.0,42880.0,0.76673445]
[1641933126672,0.00162438,42881.0,42880.0,0.76673445]
[1641933127172,0.00162438,42881.0,42880.0,0.74673445]
[1641933127375,0.00162438,42881.0,42880.0,0.34673445]
[1641933127573,0.00162438,42881.0,42880.0,0.24673445]
[1641933127874,0.00162438,42881.0,42880.0,0.26673445]
[1641933129276,0.00162438,42881.0,42880.0,0.24673445]
[1641933130023,0.00162438,42881.0,42880.0,0.02015]
[1641933131024,0.00162438,42881.0,42880.0,0.00015]
[1641933131524,0.00162438,42881.0,42879.0,0.15015]
[1641933131924,0.00162438,42881.0,42880.0,0.01415]
[1641933131925,0.44863607,42881.0,42880.0,0.01415]
[1641933133179,0.44863607,42881.0,42880.0,0.00015]
[1641933133679,0.49863607,42881.0,42880.0,0.00015]
[1641933133883,0.50763607,42881.0,42880.0,0.01115]
[1641933135278,0.49863607,42881.0,42880.0,0.00015]
[1641933135679,0.44863607,42881.0,42880.0,0.00015]
[1641933135879,0.45963607,42881.0,42880.0,0.00915]
[1641933136919,0.50963607,42881.0,42880.0,0.00915]
[1641933137120,0.49863607,42881.0,42880.0,0.00015]
[1641933137521,0.44863607,42881.0,42880.0,0.00015]
[1641933137920,0.46363607,42881.0,42880.0,0.01015]
[1641933139124,0.44863607,42881.0,42880.0,0.00015]
[1641933139925,0.01362438,42881.0,42880.0,0.00915]
[1641933140871,0.01362438,42881.0,42880.0,0.40426064]
[1641933141069,0.00162438,42881.0,42880.0,0.49526064]
[1641933141776,0.00162438,42881.0,42880.0,0.72556493]
[1641933143172,0.00162438,42881.0,42880.0,0.70856493]
[1641933143773,0.00162438,42881.0,42880.0,0.73256493]
[1641933145019,0.00162438,42881.0,42880.0,0.70856493]
[1641933145822,0.00162438,42881.0,42880.0,0.73256493]
[1641933147030,0.00162438,42881.0,42880.0,0.75516493]
[1641933147822,0.00162438,42881.0,42880.0,0.77916493]
[1641933149171,0.00162438,42881.0,42880.0,0.75516493]
[1641933149773,0.00162438,42881.0,42880.0,0.77916493]
[1641933151178,0.00162438,42881.0,42880.0,0.75516493]
[1641933151374,0.00162438,42881.0,42880.0,0.90516493]
[1641933151576,0.00097461,42881.0,42880.0,0.90516493]
[1641933152027,0.00097461,42881.0,42880.0,0.92916493]
[1641933152233,0.00097461,42881.0,42880.0,0.82916493]
[1641933152429,0.00097461,42881.0,42880.0,0.61586064]
[1641933153031,0.00097461,42881.0,42880.0,0.59186064]
[1641933153830,0.00097461,42881.0,42880.0,0.61586064]
[1641933154031,0.00097461,42881.0,42880.0,0.32075]
[1641933154430,0.00097461,42881.0,42880.0,0.22075]
[1641933155033,0.00097461,42881.0,42878.0,0.00069549]
[1641933155233,0.37365516,42881.0,42878.0,0.00069549]
[1641933155876,0.37365516,42881.0,42878.0,0.02069549]
[1641933156075,0.37365516,42881.0,42878.0,0.02]
[1641933156776,0.37430528,42881.0,42878.0,0.02]
[1641933157175,0.37430528,42881.0,42877.0,0.001391]
[1641933157379,0.31891417,42880.0,42877.0,0.0006955]
[1641933157578,0.00126154,42878.0,42877.0,0.0006955]
[1641933157778,1.93133436,42878.0,42877.0,0.0006955]
[1641933157977,1.98133436,42878.0,42877.0,0.0006955]
[1641933158177,2.03133436,42878.0,42877.0,0.0006955]
[1641933158575,0.04183073,42877.0,42875.0,0.00069552]
[1641933158776,1.90561343,42876.0,42875.0,0.00069552]
[1641933158976,1.95561343,42876.0,42875.0,0.00069552]
[1641933159425,1.97623343,42876.0,42875.0,0.00069552]
[1641933159623,1.97623343,42876.0,42873.0,0.00069553]
[1641933159825,0.00125799,42874.0,42873.0,0.00069553]
[1641933160027,2.35204437,42874.0,42873.0,0.00069553]
[1641933160424,2.07999134,42874.0,42873.0,0.00069553]
[1641933160827,2.07999134,42874.0,42871.0,0.00069555]
[1641933161025,0.058329,42873.0,42871.0,0.00069555]
[1641933161325,1.84841326,42872.0,42871.0,0.00069555]
[1641933161525,1.62586172,42872.0,42871.0,0.00069555]
[1641933162026,1.63786172,42872.0,42869.0,0.00069558]
[1641933162224,0.00127662,42870.0,42869.0,0.00069558]
[1641933162427,0.43426218,42870.0,42869.0,0.00069558]
[1641933162627,0.48426218,42870.0,42869.0,0.00084558]
[1641933162825,0.53426218,42870.0,42869.0,0.00084558]
[1641933163289,0.53426218,42870.0,42869.0,0.00015]
[1641933163689,0.53426218,42870.0,42868.0,0.00015]
[1641933163887,0.55026218,42870.0,42868.0,0.00015]
[1641933164487,1.36239405,42869.0,42868.0,0.00015]
[1641933164689,1.74422118,42869.0,42868.0,0.00015]
[1641933164989,0.79422118,42869.0,42868.0,0.00015]
[1641933165889,0.80922118,42869.0,42868.0,0.00015]
[1641933166088,0.80922118,42869.0,42867.0,0.00015]
[1641933166289,0.374651,42868.0,42867.0,0.00015]
[1641933167322,0.374651,42868.0,42866.0,0.00015]
[1641933167524,0.52746386,42867.0,42866.0,0.00015]
[1641933167724,0.95211486,42867.0,42866.0,0.00015]
[1641933169429,0.37118833,42869.0,42866.0,0.00015]
[1641933169924,0.013,42867.0,42866.0,0.00015]
[1641933171192,0.37118833,42869.0,42866.0,0.00015]
[1641933171591,0.00097089,42867.0,42866.0,0.00015]
[1641933175929,0.00097089,42867.0,42866.0,0.3569817]
[1641933176126,0.00097089,42867.0,42866.0,0.4569817]
[1641933176727,0.30877638,42885.0,42878.0,0.45593921]
[1641933176928,0.00097638,42885.0,42878.0,0.45593921]
[1641933177128,0.00097638,42885.0,42878.0,0.86414105]
[1641933177628,0.00097638,42885.0,42879.0,0.00068838]
[1641933178031,0.01597638,42885.0,42879.0,0.00068838]
[1641933178874,0.01597638,42885.0,42878.0,1.21728734]
[1641933178875,0.01597638,42885.0,42880.0,0.00068657]
[1641933179275,0.00097638,42885.0,42880.0,0.00068657]
[1641933179877,0.02197638,42885.0,42880.0,0.008]
[1641933180077,0.02197638,42885.0,42880.0,0.00868657]
[1641933181281,0.00097638,42885.0,42880.0,0.00069578]
[1641933181679,0.42148984,42886.0,42880.0,0.00069578]
[1641933181923,0.024,42885.0,42880.0,0.00969578]
[1641933182424,0.024,42885.0,42881.0,0.00069856]
[1641933183124,0.47148984,42886.0,42881.0,0.00069856]
[1641933183327,0.39279833,42883.0,42881.0,0.00069856]
[1641933183924,0.39279833,42883.0,42881.0,0.00969856]
[1641933183925,0.42779833,42883.0,42881.0,0.00969856]
[1641933184124,0.47779833,42883.0,42881.0,0.00969856]
[1641933184327,0.31666297,42882.0,42881.0,0.00969856]
[1641933184526,1.85581233,42882.0,42881.0,0.00969856]
[1641933184726,1.85708488,42882.0,42881.0,0.00969856]
[1641933185025,0.75708488,42882.0,42881.0,0.009]
[1641933185225,0.75708488,42882.0,42880.0,0.0006959]
[1641933185429,0.70247293,42881.0,42880.0,0.0006959]